Workbook

Sheet Instructions

Sheet Input
K2: Poorly sorted sand with fines | V2: Zunker | W2: Terzaghi | X2: Barr | Y2: Plotted Data - Line | AA2: ü | AC2: Estimation of Hydraulic Conductivity | AD2: cm/s | AE2: m/s | AF2: m/d | AH2: Estimation of Hydraulic Conductivity | AI2: cm/s | AJ2: m/s | AK2: m/d | AM2: A. mean | AN2: G mean
V3: 0.00155 | W3: 0.0084 | X3: 0.00402 | Y3: 4.591771882 | Z3: 103.6058145 | AB3: =IF(ISBLANK(F19)=FALSE,1,0) -> 0 | AC3: Hazen | AD3: =IF($AB3>0,$AB3*H19," ") ->  | AE3: =IF($AB3>0,$AB3*I19," ") ->  | AH3: Hazen | AI3: =IF($AB3=0,H19," ") -> 0.0001164633206 | AJ3: =IF($AB3=0,I19," ") -> 1.164633206e-06 | AK3: 0.100624309 | AM3: =$J$35 -> 0.4026597643 | AN3: =$J$34 -> 0.1697822692
W4: 0.014 | X4: 0.014 | Y4: 4.400332097 | Z4: 104.726202 | AB4: =IF(ISBLANK(F20)=FALSE,1,0) -> 0 | AC4: Hazen K (cm/s) = d102 (mm2) | AD4: =IF($AB4>0,$AB4*H20," ") ->  | AE4: =IF($AB4>0,$AB4*I20," ") ->  | AF4: =IF($AB4>0,$AB4*J20," ") ->  | AH4: Hazen K (cm/s) = d102 (mm2) | AI4: =IF($AB4=0,H20," ") -> 0.000196 | AJ4: =IF($AB4=0,I20," ") -> 1.96e-06 | AK4: =IF($AB4=0,J20," ") -> 0.169344 | AM4: =$J$35 -> 0.4026597643 | AN4: =$J$34 -> 0.1697822692
C5: Mass Sample (g): | E5: T (oC) | Y5: 4.216873803 | Z5: 105.4780924 | AB5: 0 | AC5: Slichter | AH5: Slichter | AI5: 2.315885145e-05 | AJ5: 2.315885145e-07 | AK5: 0.02000924765 | AM5: 0.4026597643 | AN5: 0.1697822692
C6: 100 | E6: 20 | V6: 0.014 | W6: 0.014 | X6: 0.014 | Y6: 4.041064238 | Z6: 105.9160693 | AB6: 0 | AC6: Terzaghi | AH6: Terzaghi | AI6: 3.361827094e-05 | AJ6: 3.361827094e-07 | AK6: 0.02904618609 | AM6: 0.4026597643 | AN6: 0.1697822692
A7: Sieve opening di (f) | B7: Sieve opening (ps) di (mm) | C7: Mass of retained (mr) (g) | D7: mass fraction (mf) | E7: Percent Passing (pp) | Y7: 3.872584512 | Z7: 106.0876853 | AB7: 0 | AC7: Beyer | AH7: Beyer | AI7: 0.0001384860084 | AJ7: 1.384860084e-06 | AK7: 0.1196519113 | AM7: 0.4026597643 | AN7: 0.1697822692
A8: =IF(ISBLANK(B8)," ",3.3193*LOG(B8)) -> 2.320091135 | B8: 5 | C8: 0 | D8: 0 | E8: 100 | K8: Effective Grain Diameters (mm) | M8: Other Useful Parameters | V8: ne for Dg | W8: Dgeom approx | Y8: 3.711129029 | Z8: 106.0343302 | AB8: 1 | AC8: Sauerbrei | AD8: 0.0001243895813 | AE8: 1.243895813e-06 | AF8: 0.1074725983 | AH8: Sauerbrei | AM8: 0.4026597643 | AN8: 0.1697822692
A9: -0.2342797599 | B9: 0.85 | C9: 20 | D9: 0.2 | E9: 80 | K9: d10 | L9: 0.014 | M9: Uniformity Coef. | N9: =L13/L9 -> 21.42857143 | V9: 0 | W9: =2^((N17+N18+N19)/3) -> 0.2171797989 | Y9: 3.556404935 | Z9: 105.7919926 | AB9: 0 | AC9: Kruger | AH9: Kruger | AI9: 0.0001144858948 | AJ9: 1.144858948e-06 | AK9: 0.09891581311 | AM9: 0.4026597643 | AN9: 0.1697822692
A10: -1.735591419 | B10: 0.3 | C10: 20 | D10: 0.2 | E10: 60 | K10: d17 | L10: 0.0315 | M10: n computed | N10: =0.255*(1+0.83^N9) -> 0.2597043465 | O10: =IF(V9>0,V9,0.255*(1+0.83^N9)) -> 0.2597043465 | Y10: 3.408131585 | Z10: 105.3919298 | AB10: 0 | AC10: Kozeny-Carmen | AH10: Kozeny-Carmen | AI10: 8.169583896e-05 | AJ10: 8.169583896e-07 | AK10: 0.07058520486 | AM10: 0.4026597643 | AN10: 0.1697822692
A11: -3.05647369 | B11: 0.12 | C11: 20 | D11: 0.2 | E11: 40 | K11: d20 | L11: 0.039 | M11: g (cm/s2) | N11: 980 | Y11: 3.266040036 | Z11: 104.8612557 | AB11: 0 | AC11: Zunker | AH11: Zunker | AI11: 7.160057796e-05 | AJ11: 7.160057796e-07 | AK11: 0.06186289936 | AM11: 0.4026597643 | AN11: 0.1697822692
A12: -4.67667925 | B12: 0.039 | C12: 20 | D12: 0.2 | E12: 20 | K12: d50 | L12: 0.21 | M12: r (g/cm3) | N12: 0.998136 | Y12: 3.129872556 | Z12: 104.223457 | AB12: 0 | AC12: Zamarin | AH12: Zamarin | AI12: 0.00010004811 | AJ12: 1.0004811e-06 | AK12: 0.08644156702 | AM12: 0.4026597643 | AN12: 0.1697822692
A13: -6.153557211 | B13: 0.014 | C13: 10 | D13: 0.1 | E13: 10 | K13: d60 | L13: 0.3 | M13: m (g/cm s) | N13: 0.009848 | Y13: 2.99938216 | Z13: 103.4988468 | AB13: 0 | AC13: USBR | AH13: USBR | AI13: 0.0002740044329 | AJ13: 2.740044329e-06 | AK13: 0.23673983 | AM13: 0.4026597643 | AN13: 0.1697822692
A14: -8.637017729 | B14: 0.0025 | C14: 5 | D14: 0.05 | E14: 5 | K14: dgeometric mean | L14: 0.1627637098 | M14: rg/m (1/cm s) | N14: 99327.09992 | Y14: 2.87433216 | Z14: 102.7049626 | AB14: 1 | AC14: Barr | AD14: 2.501365384e-05 | AE14: 2.501365384e-07 | AF14: 0.02161179692 | AH14: Barr | AM14: 0.4026597643 | AN14: 0.1697822692
A15: -9.9579 | B15: 0.001 | C15: 5 | D15: 0.05 | E15: 0 | K15: de (Kruger) | L15: 0.02364629349 | M15: tau (Sauerbrei) | N15: 1.05302 | Y15: 2.754495734 | Z15: 101.8569153 | AB15: 1 | AC15: Alyamani and Sen | AD15: 0.001363209491 | AE15: 1.363209491e-05 | AF15: 1.177813 | AH15: Alyamani and Sen | AM15: 0.4026597643 | AN15: 0.1697822692
K16: de (Kozeny) | L16: 0.01760813733 | M16: d5f | N16: -8.643885902 | Y16: 2.639655518 | Z16: 100.9676964 | AB16: 0 | AC16: Chapuis | AH16: Chapuis | AI16: 4.13107119e-06 | AJ16: 4.13107119e-08 | AK16: 0.003569245508 | AM16: 0.4026597643 | AN16: 0.1697822692
K17: de (Zunker) | L17: 0.0194394744 | M17: d16f | N17: -5.107820847 | Y17: 2.529603212 | Z17: 100.0484465 | AB17: 1 | AC17: Krumbein and Monk | AD17: 0.0003515528495 | AE17: 3.515528495e-06 | AF17: 0.303741662 | AH17: Krumbein and Monk | AM17: 0.4026597643 | AN17: 0.1697822692
G18: Estimation of Hydraulic Conductivity | H18: cm/s | I18: m/s | J18: m/d | K18: de (Zamarin) | L18: 0.02155698605 | M18: d50f | N18: =3.3193*LOG(L12) -> -2.249757495 | Y18: 2.424139197 | Z18: 99.10869132 | AC18: geometric mean | AD18: =GEOMEAN(AD3:AD17) -> 0.000196507256 | AE18: =GEOMEAN(AE3:AE17) -> 1.96507256e-06 | AF18: 0.1697822692
G19: Hazen | H19: 0.0001164633206 | I19: =H19/100 -> 1.164633206e-06 | J19: =H19/100*24*60*60 -> 0.100624309 | K19: Io (Alyameni) | L19: =-(10-(40/(L12-L9))*L9)*(L12-L9)/40 -> -0.035 | M19: d84f | N19: 0.7484638058 | Y19: 2.32307218 | Z19: 98.15654883 | AC19: arithmetic mean | AD19: =AVERAGE(AD3:AD17) -> 0.0004660413939 | AE19: =AVERAGE(AE3:AE17) -> 4.660413939e-06 | AF19: 0.4026597643
G20: Hazen K (cm/s) = d102 (mm2) | H20: =L9^2 -> 0.000196 | I20: =H20/100 -> 1.96e-06 | J20: =H20/100*24*60*60 -> 0.169344 | M20: d95f | N20: 1.986417763 | Y20: 2.226218841 | Z20: 97.1989105
A21: =IF(ISBLANK(B21)," ",3.3193*LOG(B21)) ->  | G21: Slichter | H21: 2.315885145e-05 | I21: 2.315885145e-07 | J21: =H21/100*24*60*60 -> 0.02000924765 | M21: sf | N21: =(N19-N17)/4+(N20-N16)/6.6 -> 3.074723234 | Y21: 2.133403503 | Z21: 96.24160034
G22: Terzaghi | H22: 3.361827094e-05 | I22: 3.361827094e-07 | J22: =H22/100*24*60*60 -> 0.02904618609 | L22: mm | N22: % in sample | Y22: 2.044457815 | Z22: 95.2895143
G23: Beyer | H23: 0.0001384860084 | I23: 1.384860084e-06 | J23: 0.1196519113 | L23: >200 | M23: Boulder | Y23: 1.959220444 | Z23: 94.34674225
F24: ü | G24: Sauerbrei | H24: 0.0001243895813 | I24: 1.243895813e-06 | J24: 0.1074725983 | L24: 64-200 | M24: Cobble | Y24: 1.877536782 | Z24: 93.41667487
G25: Kruger | H25: 0.0001144858948 | I25: 1.144858948e-06 | J25: 0.09891581311 | L25: 16 - 64 | M25: coarse gravel | Y25: 1.799258669 | Z25: 92.50209719
G26: Kozeny-Carmen | H26: 8.169583896e-05 | I26: 8.169583896e-07 | J26: 0.07058520486 | L26: 8 - 16 | M26: medium gravel | Y26: 1.724244121 | Z26: 91.60527047
G27: Zunker | H27: 7.160057796e-05 | I27: 7.160057796e-07 | J27: 0.06186289936 | L27: 2 - 8 | M27: fine gravel | N27: 0 | Y27: 1.652357073 | Z27: 90.72800366
G28: Zamarin | H28: 0.00010004811 | I28: 1.0004811e-06 | J28: 0.08644156702 | L28: 0.5 - 2 | M28: coarse sand | N28: 20 | Y28: 1.583467134 | Z28: 89.87171606
G29: USBR | H29: 0.0002740044329 | I29: 2.740044329e-06 | J29: 0.23673983 | L29: 0.25 - 0.5 | M29: medium sand | N29: 20 | Y29: 1.517449349 | Z29: 89.03749189
F30: ü | G30: Barr | H30: 2.501365384e-05 | I30: 2.501365384e-07 | J30: 0.02161179692 | L30: 0.063 - 0.25 | M30: fine sand | N30: 20 | Y30: 1.454183973 | Z30: 88.22612801
F31: ü | G31: Alyamani and Sen | H31: 0.001363209491 | I31: 1.363209491e-05 | J31: 1.177813 | L31: 0.016 - 0.063 | M31: coarse silt | N31: 20 | Y31: 1.393556251 | Z31: 87.43817554
G32: Chapuis | H32: 4.13107119e-06 | I32: 4.13107119e-08 | J32: 0.003569245508 | L32: 0.008 - 0.016 | M32: medium silt | N32: 10 | Y32: 1.335456215 | Z32: 86.67397613
F33: ü | G33: Krumbein and Monk | H33: 0.0003515528495 | I33: 3.515528495e-06 | J33: 0.303741662 | L33: 0.002 - 0.008 | M33: fine silt | N33: 5 | Y33: 1.279778482 | Z33: 85.93369354
G34: geometric mean | H34: =AD18 -> 0.000196507256 | I34: =AE18 -> 1.96507256e-06 | J34: =AF18 -> 0.1697822692 | L34: <0.002 | M34: clay | N34: 5 | Y34: 1.22642206 | Z34: 85.21734118
G35: arithmetic mean | H35: =AD19 -> 0.0004660413939 | I35: 4.660413939e-06 | J35: 0.4026597643 | Y35: 1.17529017 | Z35: 84.52480595
Y36: 1.126290066 | Z36: 83.85586908
Y37: 1.079332871 | Z37: 83.21022407
Y38: 1.034333411 | Z38: 82.5874923
Y39: 0.9912100654 | Z39: 81.98723654
Y40: 0.9498846148 | Z40: 81.40897257
Y41: 0.9102821015 | Z41: 80.8521792
Y42: 0.8723306931 | Z42: 80.31630695
Y43: 0.8359615517 | Z43: 79.79014984
Y44: 0.8011087096 | Z44: 79.17822899
Y45: 0.7677089495 | Z45: 78.47518987
Y46: 0.7357016895 | Z46: 77.69996935
Y47: 0.7050288736 | Z47: 76.86880533
Y48: 0.6756348663 | Z48: 75.99558595
Y49: 0.6474663515 | Z49: 75.09215521
Y50: 0.6204722363 | Z50: 74.16858039
Y51: 0.5946035575 | Z51: 73.23338589
Y52: 0.5698133936 | Z52: 72.29375778
Y53: 0.5460567793 | Z53: 71.35572241
Y54: 0.5232906238 | Z54: 70.4243026
Y55: 0.501473633 | Z55: 69.50365385
Y56: 0.4805662345 | Z56: 68.59718335
Y57: 0.4605305055 | Z57: 67.70765365
Y58: 0.4413301046 | Z58: 66.83727313
Y59: 0.4229302052 | Z59: 65.98777475
Y60: 0.405297433 | Z60: 65.16048458
Y61: 0.3883998049 | Z61: 64.35638145
Y62: 0.3722066713 | Z62: 63.57614878
Y63: 0.3566886606 | Z63: 62.82021956
Y64: 0.3418176255 | Z64: 62.08881536
Y65: 0.3275665925 | Z65: 61.38198013
Y66: 0.3139097123 | Z66: 60.6996095
Y67: 0.3008222137 | Z67: 60.04147601
Y68: 0.2882803581 | Z68: 59.35093197
Y69: 0.2762613965 | Z69: 58.5686421
Y70: 0.2647435285 | Z70: 57.71288656
Y71: 0.2537058625 | Z71: 56.79966763
A72: =IF(ISBLANK(B72)," ",3.3193*LOG(B72)) ->  | Y72: 0.243128378 | Z72: 55.84275087
Y73: 0.2329918892 | Z73: 54.85394803
Y74: 0.22327801 | Z74: 53.84336538
Y75: 0.2139691211 | Z75: 52.8196215
Y76: 0.2050483376 | Z76: 51.79003831
Y77: 0.1964994788 | Z77: 50.76080854
Y78: 0.1883070382 | Z78: 49.73714265
Y79: 0.1804561563 | Z79: 48.72339741
Y80: 0.1729325927 | Z80: 47.72318867
Y81: 0.1657227009 | Z81: 46.73949004
Y82: 0.1588134033 | Z82: 45.77471926
Y83: 0.1521921676 | Z83: 44.83081386
Y84: 0.145846984 | Z84: 43.90929715
Y85: 0.1397663432 | Z85: 43.0113361
Y86: 0.133939216 | Z86: 42.13779174
Y87: 0.1283550329 | Z87: 41.28926319
Y88: 0.1230036652 | Z88: 40.46612617
Y89: 0.1178754062 | Z89: 39.66585182
Y90: 0.1129609542 | Z90: 38.86555405
Y91: 0.1082513952 | Z91: 38.06027433
Y92: 0.1037381867 | Z92: 37.25060475
Y93: 0.09941314251 | Z93: 36.4374107
Y94: 0.09526841774 | Z94: 35.6217557
Y95: 0.0912964945 | Z95: 34.80483921
Y96: 0.08749016836 | Z96: 33.98794567
Y97: 0.08384253527 | Z97: 33.17240302
Y98: 0.08034697901 | Z98: 32.35954919
Y99: 0.0769971592 | Z99: 31.55070559
Y100: 0.0737869998 | Z100: 30.74715617
Y101: 0.07071067812 | Z101: 29.9501314
Y102: 0.06776261419 | Z102: 29.1607963
Y103: 0.06493746071 | Z103: 28.38024179
Y104: 0.0622300933 | Z104: 27.60947888
Y105: 0.05963560123 | Z105: 26.84943508
Y106: 0.05714927852 | Z106: 26.10095276
Y107: 0.05476661538 | Z107: 25.36478899
Y108: 0.05248329004 | Z108: 24.64161657
Y109: 0.05029516092 | Z109: 23.93202605
Y110: 0.0481982591 | Z110: 23.23652845
Y111: 0.04618878114 | Z111: 22.55555857
Y112: 0.04426308218 | Z112: 21.88947871
Y113: 0.0424176693 | Z113: 21.23858258
Y114: 0.04064919523 | Z114: 20.60309953
Y115: 0.03895445224 | Z115: 19.98319762
Y116: 0.03733036634 | Z116: 19.37771621
Y117: 0.03577399169 | Z117: 18.7866163
Y118: 0.0342825053 | Z118: 18.21118653
Y119: 0.03285320183 | Z119: 17.65238757
Y120: 0.03148348877 | Z120: 17.11090257
Y121: 0.03017088168 | Z121: 16.58718077
Y122: 0.0289129997 | Z122: 16.08147522
Y123: 0.02770756123 | Z123: 15.59387524
Y124: 0.02655237981 | Z124: 15.12433439
Y125: 0.02544536012 | Z125: 14.67269456
Y126: 0.0243844942 | Z126: 14.23870652
Y127: 0.02336785782 | Z127: 13.82204765
Y128: 0.02239360697 | Z128: 13.422337
Y129: 0.0214599745 | Z129: 13.03914813
Y130: 0.02056526696 | Z130: 12.67202006
Y131: 0.0197078615 | Z131: 12.32046648
Y132: 0.01888620292 | Z132: 11.9839836
Y133: 0.01809880086 | Z133: 11.66205666
Y134: 0.0173442271 | Z134: 11.35416541
Y135: 0.01662111297 | Z135: 11.05978868
Y136: 0.01592814686 | Z136: 10.77840809
Y137: 0.01526407184 | Z137: 10.50951119
Y138: 0.01462768338 | Z138: 10.25259385
Y139: 0.01401782718 | Z139: 10.00716233
Y140: 0.01343339705 | Z140: 9.771483234
Y141: 0.01287333294 | Z141: 9.543853211
Y142: 0.01233661897 | Z142: 9.324070699
Y143: 0.01182228164 | Z143: 9.111933875
Y144: 0.01132938802 | Z144: 8.907240147
Y145: 0.01085704408 | Z145: 8.70978681
Y146: 0.01040439307 | Z146: 8.519371642
Y147: 0.009970613949 | Z147: 8.335793433
Y148: 0.009554919911 | Z148: 8.158852461
Y149: 0.009156556955 | Z149: 7.988350922
Y150: 0.008774802516 | Z150: 7.824093306
Y151: 0.008408964153 | Z151: 7.665886725
Y152: 0.008058378293 | Z152: 7.513541207
Y153: 0.00772240903 | Z153: 7.366869947
Y154: 0.007400446972 | Z154: 7.225689522
Y155: 0.00709190813 | Z155: 7.089820075
Y156: 0.006796232864 | Z156: 6.959085468
Y157: 0.006512884868 | Z157: 6.833313412
Y158: 0.006241350194 | Z158: 6.71233556
Y159: 0.005981136321 | Z159: 6.595987596
Y160: 0.005731771265 | Z160: 6.484109284
Y161: 0.005492802717 | Z161: 6.376544513
Y162: 0.005263797226 | Z162: 6.273141315
Y163: 0.005044339413 | Z163: 6.173751878
Y164: 0.004834031219 | Z164: 6.078232535
Y165: 0.004632491176 | Z165: 5.986443748
Y166: 0.004439353725 | Z166: 5.898250079
Y167: 0.004254268545 | Z167: 5.813520152
Y168: 0.004076899922 | Z168: 5.732126605
Y169: 0.003906926137 | Z169: 5.653946038
Y170: 0.003744038886 | Z170: 5.578858953
Y171: 0.003587942716 | Z171: 5.506749684
Y172: 0.003438354496 | Z172: 5.437506334
Y173: 0.003295002896 | Z173: 5.371020694
Y174: 0.003157627899 | Z174: 5.30718817
Y175: 0.00302598033 | Z175: 5.245907701
Y176: 0.0028998214 | Z176: 5.187081675
Y177: 0.002778922279 | Z177: 5.130615851
Y178: 0.002663063674 | Z178: 5.076419269
Y179: 0.002552035436 | Z179: 5.024404165
Y180: 0.002445636179 | Z180: 4.966165087
Y181: 0.002343672912 | Z181: 4.859345807
Y182: 0.002245960688 | Z182: 4.707023184
Y183: 0.002152322275 | Z183: 4.51847802
Y184: 0.002062587827 | Z184: 4.301604967
Y185: 0.001976594581 | Z185: 4.063099438
Y186: 0.001894186558 | Z186: 3.808620479
Y187: 0.001815214284 | Z187: 3.542932624
Y188: 0.001739534515 | Z188: 3.27002936
Y189: 0.001667009982 | Z189: 2.993240524
Y190: 0.001597509135 | Z190: 2.715325662
Y191: 0.001530905912 | Z191: 2.438555115
Y192: 0.001467079505 | Z192: 2.164780406
Y193: 0.001405914144 | Z193: 1.895495272
Y194: 0.001347298884 | Z194: 1.631888546
Y195: 0.001291127407 | Z195: 1.374889924
Y196: 0.001237297827 | Z196: 1.125209547
Y197: 0.001185712505 | Z197: 0.8833721724
Y198: 0.001136277874 | Z198: 0.6497466529
Y199: 0.001088904268 | Z199: 0.4245713296
Y200: 0.001043505758 | Z200: 0.2079758667
Y201: 0.001 | Z201: 0

Sheet Examples
A1: Examples of Grain Retention Datasets from the literature
A3: Example 1 Case 1 Vukovic 15 oC | G3: Sample 1 Odong 20 oC | M3: Thomson SERDP Borden sand
A4: ps | D4: pp | G4: ps | J4: pp | M4: ps | P4: pp
A5: 2 | D5: 100 | G5: 10 | J5: 85.23 | M5: 10 | P5: 99.99
A6: 0.82 | D6: 80 | G6: 4.75 | J6: 79.57 | M6: 9 | P6: 99.9
A7: 0.55 | D7: 60 | G7: 2.36 | J7: 66.73 | M7: 3 | P7: 99.8
A8: 0.42 | D8: 40 | G8: 1.18 | J8: 49.99 | M8: 1.3 | P8: 98
A9: 0.28 | D9: 20 | G9: 0.6 | J9: 30.75 | M9: 0.8 | P9: 97
A10: 0.15 | D10: 10 | G10: 0.425 | J10: 17.55 | M10: 0.4 | P10: 95
A11: 0.045 | D11: 0 | G11: 0.3 | J11: 6.28 | M11: 0.23 | P11: 82
G12: 0.15 | J12: 2.84 | M12: 0.15 | P12: 31
A13: Example 1 Case 2 Vukovic 15 oC | G13: 0.075 | J13: 0 | M13: 0.07 | P13: 10
A14: ps | D14: pp | M14: 0.04 | P14: 2.6
A15: 2 | D15: 100 | M15: 0.027 | P15: 2.6
A16: 1.5 | D16: 95 | G16: Sample 2 Odong 20 oC | M16: 0.017 | P16: 2.6
A17: 1.2 | D17: 90 | G17: ps | J17: pp | M17: 0.01 | P17: 2.5
A18: 0.95 | D18: 85 | G18: 1.18 | J18: 100 | M18: 0.0055 | P18: 1
A19: 0.82 | D19: 80 | G19: 0.6 | J19: 96.2 | M19: 0.002 | P19: 0
A20: 0.73 | D20: 75 | G20: 0.425 | J20: 77.65
A21: 0.66 | D21: 70 | G21: 0.3 | J21: 48.41 | M21: Schillig PVP4-5, elev 289.5 masl
A22: 0.6 | D22: 65 | G22: 0.212 | J22: 18.88 | M22: 10 | N22: 0 | O22: total weight | P22: 110.69
A23: 0.55 | D23: 60 | G23: 0.15 | J23: 2.3 | M23: 9 | N23: 0 | O23: tracer test derived Ks: 1.9e-3 m/s to 1.4e-2 m/s
A24: 0.51 | D24: 55 | G24: 0.075 | J24: 0 | M24: 4 | N24: 64.33 | P24: = | Q24: 164 m/d to 1210 m/d
A25: 0.48 | D25: 50 | M25: 2 | N25: 12.89
A26: 0.45 | D26: 45 | G26: Sample 3 Odong 20 oC | M26: 1 | N26: 11.81
A27: 0.42 | D27: 40 | G27: ps | J27: pp | M27: 0.5 | N27: 7.51
A28: 0.39 | D28: 35 | G28: 4.75 | J28: 95.05 | M28: 0.297 | N28: 3.56
A29: 0.36 | D29: 30 | G29: 2.36 | J29: 85.08 | M29: 0.177 | N29: 2.38
A30: 0.32 | D30: 25 | G30: 2 | J30: 82.02 | M30: 0.125 | N30: 2.97
A31: 0.28 | D31: 20 | G31: 1.18 | J31: 64.66 | M31: 0.063 | N31: 2.28
A32: 0.22 | D32: 15 | G32: 0.6 | J32: 44.76 | M32: 0.01 | N32: 1.54
A33: 0.15 | D33: 10 | G33: 0.425 | J33: 23.42
A34: 0.08 | D34: 5 | G34: 0.3 | J34: 7.96
A35: 0.045 | D35: 0 | G35: 0.15 | J35: 2.11
G36: 0.075 | J36: 0
A37: Example 2 Case 1 Vukovic 15 oC
A38: ps | D38: pp | G38: Sample 4 Odong 20 oC
A39: 5 | D39: 100 | G39: ps | J39: pp
A40: 0.85 | D40: 80 | G40: 1.18 | J40: 100
A41: 0.3 | D41: 60 | G41: 0.6 | J41: 98.44
A42: 0.12 | D42: 40 | G42: 0.425 | J42: 91.55
A43: 0.039 | D43: 20 | G43: 0.3 | J43: 68.78
A44: 0.014 | D44: 10 | G44: 0.212 | J44: 25.83
A45: 0.0025 | D45: 5 | G45: 0.15 | J45: 7.89
A46: 0.001 | D46: 0 | G46: 0.075 | J46: 0.93
G47: 0.063 | J47: 0

Sheet Equations
E6: 20
N11: 980
N12: 0.998136

Sheet References
B1: References
A2: 1 | B2: Aguilar, J.R. 2013. Analysis of grain size distribution and hydraulic conductivity for a variety of sediment types with application to wadi sediments. M.B2:B19S. thesis submitted to King Abdullah University of Science and Technology, Thuwal, Kingdom of Saudi Arabia, 134 pp.
A3: =A2+1 -> 2 | B3: Alyamani, M.S., Sen Z. 1993. Determination of hydraulic conductivity from complete grain-size distribution curves. Ground Water, v. 31, no. 4, 551-555.
A4: =A3+1 -> 3 | B4: Barr, D.W. 2001. Coefficient of permeability determined by measurable parameters. Ground Water, v. 39, no. 3, 356-361.
A5: 4 | B5: Barth, G.R., Hill, M.C., Illangasekare, T.H., Rajaram, H. 2001. Predictive modeling of flow and transport in a two-dimensional intermediate-scale, heterogeneous porous medium. Water Resources Research, v. 37, no. 10, 2503–2512.
A6: 5 | B6: Beyer, W. 1964. "Zur Bestimmung der Wasserdurchlässigkeit von Kiesen und Sanden aus der Kornverteilungskurve." Wasserwirtschaft-Wassertechnik 14(6): 165-168.
A7: 6 | B7: Białas, Z. (1966). O usrednianiu wspolczynnikow filtracji z zastosowaniem elektronicznej cyfrowej maszyny matematycznej (Averaging filter coefficients using digital electronic mathematical machines). Przedsiebiorstwo Geologiczne we Wroclawiu: 47-50.
A8: 7 | B8: Chapuis, R.P. 2004. Predicting the saturated hydraulic conductivity of sand and gravel using effective diameter and void ratio. Canadian Geotechnical Journal, v. 41, 787–795.
A9: 8 | B9: Devlin, J.F. (2015). HydrogeoSieveXL. Excel-based Visual Basic tool freely available at http://www.people.ku.edu/~jfdevlin/Publications.html. Cited 18 February, 2015.
A10: 9 | B10: Dullien, F.A., 1991. Fluid Transport and Pore Structure. Academic Press, San Diego, CA.
A11: 10 | B11: Freeze, R.A., Cherry, J.A. 1979. Groundwater. Prentice Hall, Englewood Cliffs, New Jersey.
A12: 11 | B12: Fuchs, S. (2010) Deterministische kf-Wert-Schätzung nach petrographischer Bohrgutansprache (Deterministic kf value estimation from petrographic borehole records). Grundwasser – Zeitschrift der Fachsektion Hydrogeologie 15: 177–189.
A13: 12 | B13: Hazen, A. 1892. Some physical properties of sands and gravels, with special reference to their use in filtration. Massachusetts State Board of Health, vol. 24th annual report, pp. 539-556.
A14: 13 | B14: Kasenow, M., 2002, Determination of Hydraulic Conductivity from Grain Size Analysis: Water Resources Publications, LLC, Highlands Ranch, Colorado, 97p.
A15: 14 | B15: Kozeny, J. (1953). Das Wasser im Boden. Grundwasserbewegung (The water in the ground. Groundwater flow). Hydraulik, Springer, p 380-445.
A16: 15 | B16: Krüger, E., 1919. Die Grundwasserbewegung (Groundwater flow). Int. Mitt. Bodenk. 8, 105–122.
A17: 16 | B17: Krumbein, W.C., Monk, G.D. 1942. Permeability as a function of the size parameters of unconsolidated sand. American Institute of Mining and Metallurgical Engineers, Transactions v. 151, 153-163.
A18: 17 | B18: Moreau, J.P. Program to demonstrate the Akima spline fitting of Function SIN(X) in double precision. http://jean-pierre.moreau.pagesperso-orange.fr/Fortran/akima_f90.txt . Cited 30 January, 2015.
A19: 18 | B19: Odong, J. 2013. Evaluation of empirical formulae for determination of hydraulic conductivity based on grain-size analysis. International Journal of Agriculture and Environment, v. 1, 1-8.
A20: 19 | B20: Rosas, J., Lopez, O., Missimer, T.M., Coulibaly, K.M., Dehwah, A.H.A., Sesler, K., Lujan, L.R., Mantilla, D. 2014. Determination of hydraulic conductivity from grain-size distribution for different depositional environments. Groundwater, v. 52, no. 3, 399-413.
A21: =A20+1 -> 20 | B21: Slichter, C.S., 1898, Theoretical investigations of the motion of ground waters: United States Geological Survey, 19 th Annual Report, p 295-384.
A22: 21 | B22: Terzaghi, K., 1925, Principles of soil mechanics: Engineering News-Record, v. 95, p 832.
A23: 22 | B23: Urumovic, K., Urumovic, K. Sr. 2106. The referential grain size and effective porosity in the Kozeny–Carman model. Hydrological Earth System Science, v. 20, 1669-1680.
A24: 23 | B24: Vukovic, M., Soro, A. 1992. Determinatiion of hydraulic conductivity of porous media from grain-size composition. Miladinov, D., translator, Water Resources Publications, Littleton, Colorado, USA, 83 pp.
A25: 24 | B25: Zamarin, J.A. 1928. Calculation of ground-water flow (in Russian). Trudey I.V.H. Taskeni.
A26: 25 | B26: Zunker, F. (1930). Das Verhalten des Wassers zum Boden (The behavior of groundwater). Zeitschrift für Pflanzenernährung, Düngung und Bodenkunde. A25(1): 7.

Sheet Report Grain Size
C2: Grain Size Analysis Report | G2: Date:
C4: Sample Name:
D5: =Input!C5 -> Mass Sample (g): | F5: =Input!C6 -> 100 | H5: =Input!E5 -> T (oC) | I5: =Input!E6 -> 20
A7: =Input!K2 -> Poorly sorted sand with fines
A20: =Input!B7 -> Sieve opening (ps) di (mm) | B20: =Input!C7 -> Mass of retained (mr) (g) | C20: =Input!D7 -> mass fraction (mf) | D20: =Input!E7 -> Percent Passing (pp) | F20: =Input!K8 -> Effective Grain Diameters (mm) | H20: =Input!M8 -> Other Useful Parameters
A21: =IF(ISBLANK(Input!B8)," ",Input!B8) -> 5 | B21: =IF(ISBLANK(Input!C8)," ",Input!C8) -> 0 | C21: =IF(ISBLANK(Input!D8)," ",Input!D8) -> 0 | D21: =IF(ISBLANK(Input!E8)," ",Input!E8) -> 100 | F21: =Input!K9 -> d10 | G21: =Input!L9 -> 0.014 | H21: Uniformity Coef. | I21: =Input!N9 -> 21.42857143
A22: =IF(ISBLANK(Input!B9)," ",Input!B9) -> 0.85 | B22: =IF(ISBLANK(Input!C9)," ",Input!C9) -> 20 | C22: =IF(ISBLANK(Input!D9)," ",Input!D9) -> 0.2 | D22: =IF(ISBLANK(Input!E9)," ",Input!E9) -> 80 | F22: =Input!K10 -> d17 | G22: =Input!L10 -> 0.0315 | H22: n computed | I22: =Input!N10 -> 0.2597043465
A23: =IF(ISBLANK(Input!B10)," ",Input!B10) -> 0.3 | B23: =IF(ISBLANK(Input!C10)," ",Input!C10) -> 20 | C23: =IF(ISBLANK(Input!D10)," ",Input!D10) -> 0.2 | D23: =IF(ISBLANK(Input!E10)," ",Input!E10) -> 60 | F23: =Input!K11 -> d20 | G23: =Input!L11 -> 0.039 | H23: g (cm/s2) | I23: =Input!N11 -> 980
A24: =IF(ISBLANK(Input!B11)," ",Input!B11) -> 0.12 | B24: =IF(ISBLANK(Input!C11)," ",Input!C11) -> 20 | C24: =IF(ISBLANK(Input!D11)," ",Input!D11) -> 0.2 | D24: =IF(ISBLANK(Input!E11)," ",Input!E11) -> 40 | F24: =Input!K12 -> d50 | G24: =Input!L12 -> 0.21 | H24: r (g/cm3) | I24: =Input!N12 -> 0.998136
A25: =IF(ISBLANK(Input!B12)," ",Input!B12) -> 0.039 | B25: =IF(ISBLANK(Input!C12)," ",Input!C12) -> 20 | C25: =IF(ISBLANK(Input!D12)," ",Input!D12) -> 0.2 | D25: =IF(ISBLANK(Input!E12)," ",Input!E12) -> 20 | F25: =Input!K13 -> d60 | G25: =Input!L13 -> 0.3 | H25: m (g/cm s) | I25: =Input!N13 -> 0.009848
A26: =IF(ISBLANK(Input!B13)," ",Input!B13) -> 0.014 | B26: =IF(ISBLANK(Input!C13)," ",Input!C13) -> 10 | C26: =IF(ISBLANK(Input!D13)," ",Input!D13) -> 0.1 | D26: =IF(ISBLANK(Input!E13)," ",Input!E13) -> 10 | F26: =Input!K15 -> de (Kruger) | G26: =Input!L15 -> 0.02364629349 | H26: rg/m (1/cm s) | I26: =Input!N14 -> 99327.09992
A27: =IF(ISBLANK(Input!B14)," ",Input!B14) -> 0.0025 | B27: =IF(ISBLANK(Input!C14)," ",Input!C14) -> 5 | C27: =IF(ISBLANK(Input!D14)," ",Input!D14) -> 0.05 | D27: =IF(ISBLANK(Input!E14)," ",Input!E14) -> 5 | F27: =Input!K16 -> de (Kozeny) | G27: =Input!L16 -> 0.01760813733 | H27: tau (Sauerbrei) | I27: =Input!N15 -> 1.05302
A28: =IF(ISBLANK(Input!B15)," ",Input!B15) -> 0.001 | B28: =IF(ISBLANK(Input!C15)," ",Input!C15) -> 5 | C28: =IF(ISBLANK(Input!D15)," ",Input!D15) -> 0.05 | D28: =IF(ISBLANK(Input!E15)," ",Input!E15) -> 0 | F28: =Input!K17 -> de (Zunker) | G28: =Input!L17 -> 0.0194394744 | H28: dgeometric mean | I28: =Input!L14 -> 0.1627637098
A29: =IF(ISBLANK(Input!B16)," ",Input!B16) ->  | B29: =IF(ISBLANK(Input!C16)," ",Input!C16) ->  | C29: =IF(ISBLANK(Input!D16)," ",Input!D16) ->  | D29: =IF(ISBLANK(Input!E16)," ",Input!E16) ->  | F29: =Input!K18 -> de (Zamarin) | G29: =Input!L18 -> 0.02155698605 | H29: sf | I29: =Input!N21 -> 3.074723234
A30: =IF(ISBLANK(Input!B17)," ",Input!B17) ->  | B30: =IF(ISBLANK(Input!C17)," ",Input!C17) ->  | C30: =IF(ISBLANK(Input!D17)," ",Input!D17) ->  | D30: =IF(ISBLANK(Input!E17)," ",Input!E17) ->  | F30: =Input!K19 -> Io (Alyameni) | G30: =Input!L19 -> -0.035
A31: =IF(ISBLANK(Input!B18)," ",Input!B18) ->  | B31: =IF(ISBLANK(Input!C18)," ",Input!C18) ->  | C31: =IF(ISBLANK(Input!D18)," ",Input!D18) ->  | D31: =IF(ISBLANK(Input!E18)," ",Input!E18) ->  | F31: =Input!#REF! ->  | H31: =Input!$M$22 -> 0 | I31: =Input!$N$22 -> % in sample
A32: =IF(ISBLANK(Input!B19)," ",Input!B19) ->  | B32: =IF(ISBLANK(Input!C19)," ",Input!C19) ->  | C32: =IF(ISBLANK(Input!D19)," ",Input!D19) ->  | D32: =IF(ISBLANK(Input!E19)," ",Input!E19) ->  | F32: =Input!L23 -> >200 | H32: =Input!M23 -> Boulder | I32: =IF(ISBLANK(Input!N23)," ",Input!N23) -> 
A33: =IF(ISBLANK(Input!B20)," ",Input!B20) ->  | B33: =IF(ISBLANK(Input!C20)," ",Input!C20) ->  | C33: =IF(ISBLANK(Input!D20)," ",Input!D20) ->  | D33: =IF(ISBLANK(Input!E20)," ",Input!E20) ->  | F33: =Input!L24 -> 64-200 | H33: =Input!M25 -> coarse gravel | I33: =IF(ISBLANK(Input!N24)," ",Input!N24) -> 
A34: =IF(ISBLANK(Input!B21)," ",Input!B21) ->  | B34: =IF(ISBLANK(Input!C21)," ",Input!C21) ->  | C34: =IF(ISBLANK(Input!D21)," ",Input!D21) ->  | D34: =IF(ISBLANK(Input!E21)," ",Input!E21) ->  | F34: =Input!L25 -> 16 - 64 | H34: =Input!M26 -> medium gravel | I34: =IF(ISBLANK(Input!N25)," ",Input!N25) -> 
A35: =IF(ISBLANK(Input!B22)," ",Input!B22) ->  | B35: =IF(ISBLANK(Input!C22)," ",Input!C22) ->  | C35: =IF(ISBLANK(Input!D22)," ",Input!D22) ->  | D35: =IF(ISBLANK(Input!E22)," ",Input!E22) ->  | F35: =Input!L26 -> 8 - 16 | H35: =Input!M27 -> fine gravel | I35: =IF(ISBLANK(Input!N26)," ",Input!N26) -> 
A36: =IF(ISBLANK(Input!B23)," ",Input!B23) ->  | B36: =IF(ISBLANK(Input!C23)," ",Input!C23) ->  | C36: =IF(ISBLANK(Input!D23)," ",Input!D23) ->  | D36: =IF(ISBLANK(Input!E23)," ",Input!E23) ->  | F36: =Input!L27 -> 2 - 8 | H36: =Input!M28 -> coarse sand | I36: =IF(ISBLANK(Input!N27)," ",Input!N27) -> 0
A37: =IF(ISBLANK(Input!B24)," ",Input!B24) ->  | B37: =IF(ISBLANK(Input!C24)," ",Input!C24) ->  | C37: =IF(ISBLANK(Input!D24)," ",Input!D24) ->  | D37: =IF(ISBLANK(Input!E24)," ",Input!E24) ->  | F37: =Input!L28 -> 0.5 - 2 | H37: =Input!M29 -> medium sand | I37: =IF(ISBLANK(Input!N28)," ",Input!N28) -> 20
A38: =IF(ISBLANK(Input!B25)," ",Input!B25) ->  | B38: =IF(ISBLANK(Input!C25)," ",Input!C25) ->  | C38: =IF(ISBLANK(Input!D25)," ",Input!D25) ->  | D38: =IF(ISBLANK(Input!E25)," ",Input!E25) ->  | F38: =Input!L29 -> 0.25 - 0.5 | H38: =Input!M30 -> fine sand | I38: =IF(ISBLANK(Input!N29)," ",Input!N29) -> 20
A39: =IF(ISBLANK(Input!B26)," ",Input!B26) ->  | B39: =IF(ISBLANK(Input!C26)," ",Input!C26) ->  | C39: =IF(ISBLANK(Input!D26)," ",Input!D26) ->  | D39: =IF(ISBLANK(Input!E26)," ",Input!E26) ->  | F39: =Input!L30 -> 0.063 - 0.25 | H39: =Input!M31 -> coarse silt | I39: =IF(ISBLANK(Input!N30)," ",Input!N30) -> 20
A40: =IF(ISBLANK(Input!B27)," ",Input!B27) ->  | B40: =IF(ISBLANK(Input!C27)," ",Input!C27) ->  | C40: =IF(ISBLANK(Input!D27)," ",Input!D27) ->  | D40: =IF(ISBLANK(Input!E27)," ",Input!E27) ->  | F40: =Input!L31 -> 0.016 - 0.063 | H40: =Input!M32 -> medium silt | I40: =IF(ISBLANK(Input!N31)," ",Input!N31) -> 20
A41: =IF(ISBLANK(Input!B28)," ",Input!B28) ->  | B41: =IF(ISBLANK(Input!C28)," ",Input!C28) ->  | C41: =IF(ISBLANK(Input!D28)," ",Input!D28) ->  | D41: =IF(ISBLANK(Input!E28)," ",Input!E28) ->  | F41: =Input!L32 -> 0.008 - 0.016 | H41: =Input!M33 -> fine silt | I41: =IF(ISBLANK(Input!N32)," ",Input!N32) -> 10
A42: =IF(ISBLANK(Input!B29)," ",Input!B29) ->  | B42: =IF(ISBLANK(Input!C29)," ",Input!C29) ->  | C42: =IF(ISBLANK(Input!D29)," ",Input!D29) ->  | D42: =IF(ISBLANK(Input!E29)," ",Input!E29) ->  | F42: =Input!L33 -> 0.002 - 0.008 | H42: =Input!M34 -> clay | I42: =IF(ISBLANK(Input!N33)," ",Input!N33) -> 5
A43: =IF(ISBLANK(Input!B29)," ","Data continue, additional pages required …") -> 

Sheet Report K
C2: K from Grain Size Analysis Report | F2: Date:
C4: Sample Name:
C6: =Input!C5 -> Mass Sample (g): | D6: =Input!C6 -> 100 | F6: =Input!E5 -> T (oC) | G6: =Input!E6 -> 20
A8: =Input!K2 -> Poorly sorted sand with fines
C27: =Input!G$18 -> Estimation of Hydraulic Conductivity | D27: =Input!H$18 -> cm/s | E27: =Input!I$18 -> m/s | F27: =Input!J$18 -> m/d | G27: de
C28: Hazen | D28: =IF(ISBLANK(Input!H19)," ",Input!H19) -> 0.0001164633206 | E28: =IF(ISBLANK(Input!I19)," ",Input!I19) -> 1.164633206e-06 | F28: =IF(ISBLANK(Input!J19)," ",Input!J19) -> 0.100624309
C29: Hazen K (cm/s) = d10 (mm) | D29: =IF(ISBLANK(Input!H20)," ",Input!H20) -> 0.000196 | E29: =IF(ISBLANK(Input!I20)," ",Input!I20) -> 1.96e-06 | F29: =IF(ISBLANK(Input!J20)," ",Input!J20) -> 0.169344
C30: Slichter | D30: =IF(ISBLANK(Input!H21)," ",Input!H21) -> 2.315885145e-05 | E30: =IF(ISBLANK(Input!I21)," ",Input!I21) -> 2.315885145e-07 | F30: =IF(ISBLANK(Input!J21)," ",Input!J21) -> 0.02000924765
C31: Terzaghi | D31: =IF(ISBLANK(Input!H22)," ",Input!H22) -> 3.361827094e-05 | E31: =IF(ISBLANK(Input!I22)," ",Input!I22) -> 3.361827094e-07 | F31: =IF(ISBLANK(Input!J22)," ",Input!J22) -> 0.02904618609
C32: Beyer | D32: =IF(ISBLANK(Input!H23)," ",Input!H23) -> 0.0001384860084 | E32: =IF(ISBLANK(Input!I23)," ",Input!I23) -> 1.384860084e-06 | F32: =IF(ISBLANK(Input!J23)," ",Input!J23) -> 0.1196519113
C33: Sauerbrei | D33: =IF(ISBLANK(Input!H24)," ",Input!H24) -> 0.0001243895813 | E33: =IF(ISBLANK(Input!I24)," ",Input!I24) -> 1.243895813e-06 | F33: =IF(ISBLANK(Input!J24)," ",Input!J24) -> 0.1074725983
C34: Kruger | D34: =IF(ISBLANK(Input!H25)," ",Input!H25) -> 0.0001144858948 | E34: =IF(ISBLANK(Input!I25)," ",Input!I25) -> 1.144858948e-06 | F34: =IF(ISBLANK(Input!J25)," ",Input!J25) -> 0.09891581311
C35: Kozeny-Carmen | D35: =IF(ISBLANK(Input!H26)," ",Input!H26) -> 8.169583896e-05 | E35: =IF(ISBLANK(Input!I26)," ",Input!I26) -> 8.169583896e-07 | F35: =IF(ISBLANK(Input!J26)," ",Input!J26) -> 0.07058520486
C36: Zunker | D36: =IF(ISBLANK(Input!H27)," ",Input!H27) -> 7.160057796e-05 | E36: =IF(ISBLANK(Input!I27)," ",Input!I27) -> 7.160057796e-07 | F36: =IF(ISBLANK(Input!J27)," ",Input!J27) -> 0.06186289936
C37: Zamarin | D37: =IF(ISBLANK(Input!H28)," ",Input!H28) -> 0.00010004811 | E37: =IF(ISBLANK(Input!I28)," ",Input!I28) -> 1.0004811e-06 | F37: =IF(ISBLANK(Input!J28)," ",Input!J28) -> 0.08644156702
C38: USBR | D38: =IF(ISBLANK(Input!H29)," ",Input!H29) -> 0.0002740044329 | E38: =IF(ISBLANK(Input!I29)," ",Input!I29) -> 2.740044329e-06 | F38: =IF(ISBLANK(Input!J29)," ",Input!J29) -> 0.23673983
C39: Barr | D39: =IF(ISBLANK(Input!H30)," ",Input!H30) -> 2.501365384e-05 | E39: =IF(ISBLANK(Input!I30)," ",Input!I30) -> 2.501365384e-07 | F39: =IF(ISBLANK(Input!J30)," ",Input!J30) -> 0.02161179692
C40: Alyamani and Sen | D40: =IF(ISBLANK(Input!H31)," ",Input!H31) -> 0.001363209491 | E40: =IF(ISBLANK(Input!I31)," ",Input!I31) -> 1.363209491e-05 | F40: =IF(ISBLANK(Input!J31)," ",Input!J31) -> 1.177813
C41: Chapuis | D41: =IF(ISBLANK(Input!H32)," ",Input!H32) -> 4.13107119e-06 | E41: =IF(ISBLANK(Input!I32)," ",Input!I32) -> 4.13107119e-08 | F41: =IF(ISBLANK(Input!J32)," ",Input!J32) -> 0.003569245508
C42: Krumbein and Monk | D42: =IF(ISBLANK(Input!H33)," ",Input!H33) -> 0.0003515528495 | E42: =IF(ISBLANK(Input!I33)," ",Input!I33) -> 3.515528495e-06 | F42: =IF(ISBLANK(Input!J33)," ",Input!J33) -> 0.303741662
C43: geometric mean | D43: =IF(ISBLANK(Input!H34)," ",Input!H34) -> 0.000196507256 | E43: =IF(ISBLANK(Input!I34)," ",Input!I34) -> 1.96507256e-06 | F43: =IF(ISBLANK(Input!J34)," ",Input!J34) -> 0.1697822692
C44: arithmetic mean | D44: =IF(ISBLANK(Input!H35)," ",Input!H35) -> 0.0004660413939 | E44: =IF(ISBLANK(Input!I35)," ",Input!I35) -> 4.660413939e-06 | F44: =IF(ISBLANK(Input!J35)," ",Input!J35) -> 0.4026597643
